[Event "TCEC Season 13 - Division 4"]
[Site "http://tcec.chessdom.com"]
[Date "2018.08.08"]
[Round "25.2"]
[White "Rodent III 0.258"]
[Black "Tucano 7.05"]
[Result "1-0"]
[ECO "B15"]
[WhiteElo "3030"]
[BlackElo "2919"]
[Annotator "RC"]
[PlyCount "238"]
[EventDate "2018.??.??"]
[TimeControl "1800+10"]

{WhiteEngineOptions: Protocol=uci; Protocol=UCI; Threads=16; Hash=4096; UseBook=false; OwnBook=false; Ponder=false;, BlackEngineOptions: Protocol=xboard; Protocol=xboard; Threads=43; Hash=1024; OwnBook=false; Ponder=false;} 1. e4 {book} c6 {book} 2. d4 {book} d5 {book} 3. Nc3 {[%eval 48,24] [%emt 0:00:54]} dxe4 {[%eval 24,31] [%emt 0:01:21]} 4. Nxe4 {[%eval 39,26] [%emt 0:00:53]} Nf6 {[%eval 36,30] [%emt 0:00:58]} 5. Nxf6+ {[%eval 45,25] [%emt 0:00:52]} exf6 {[%eval 35,30] [%emt 0:00:55]} 6. Nf3 {[%eval 43,26] [%emt 0:00:51]} Na6 {[%eval 32,30] [%emt 0:01:13]} 7. c3 {[%eval 39,25] [%emt 0:00:50]} Bd6 {[%eval 28,30] [%emt 0:01:10]} 8. Bd3 {[%eval 20,25] [%emt 0:00:49]} O-O {[%eval 18,28] [%emt 0:01:07]} 9. Qc2 {[%eval 42,25] [%emt 0:00:48]} Re8+ {[%eval 15,30] [%emt 0:01:08]} 10. Be3 {[%eval 50,26] [%emt 0:00:47]} g6 {[%eval 21,27] [%emt 0:00:43]} 11. h4 {[%eval 58,26] [%emt 0:00:46]} Nc7 {[%eval 28,25] [%emt 0:01:12]} 12. h5 {[%eval 53,26] [%emt 0:00:45]} Re7 {[%eval 4,29] [%emt 0:00:58]} 13. O-O-O {[%eval 67,27] [%emt 0:00:44]} Nd5 {[%eval 7,27] [%emt 0:00:59]} 14. Kb1 {[%eval 77,25] [%emt 0:00:43]} Bg4 {[%eval 12,28] [%emt 0:00:56]} 15. hxg6 {[%eval 44,25] [%emt 0:00:43]} fxg6 {[%eval 0,27] [%emt 0:00:54]} 16. Rh4 {[%eval 18,24] [%emt 0:00:42]} Qd7 {[%eval 0,33] [%emt 0:00:38]} 17. Bc1 {[%eval 29,26] [%emt 0:00:41]} Nf4 {[%eval 26,27] [%emt 0:00:37]} 18. Bxf4 {[%eval 14,25] [%emt 0:00:40]} Bxf4 {[%eval 22,29] [%emt 0:01:41]} 19. Qa4 {[%eval 14,27] [%emt 0:00:39]} Bg5 {[%eval 19,26] [%emt 0:00:30]} 20. Rhh1 {[%eval 5,26] [%emt 0:00:39]} Bxf3 {[%eval 19,31] [%emt 0:00:38]} 21. gxf3 {[%eval 0,27] [%emt 0:00:38]} Qd6 {[%eval 19,31] [%emt 0:00:48]} 22. Bc4+ {[%eval 10,25] [%emt 0:00:37]} Kg7 {[%eval 34,31] [%emt 0:00:46]} 23. d5 {[%eval 0,29] [%emt 0:00:36]} f5 {[%eval 34,29] [%emt 0:00:44]} 24. dxc6 {[%eval 7,25] [%emt 0:00:36]} Qxc6 {[%eval 41,32] [%emt 0:00:33]} 25. Qxc6 {[%eval 29,27] [%emt 0:00:35]} bxc6 {[%eval 47,32] [%emt 0:00:43]} 26. Rd4 {[%eval 24,30] [%emt 0:00:34]} Rc8 {[%eval 46,32] [%emt 0:00:39]} 27. Kc2 {[%eval 33,25] [%emt 0:00:34]} Bf6 {[%eval 58,26] [%emt 0:00:26]} 28. Rdd1 {[%eval 40,27] [%emt 0:00:33]} h5 {[%eval 73,28] [%emt 0:00:34]} 29. Rdg1 {[%eval 30,26] [%emt 0:00:33]} Rh8 {[%eval 76,28] [%emt 0:00:28]} 30. Bd3 {[%eval 29,28] [%emt 0:00:32]} Kh6 {[%eval 72,29] [%emt 0:00:22]} 31. Rg2 {[%eval 30,26] [%emt 0:00:32]} Rhh7 {[%eval 72,31] [%emt 0:00:35]} 32. Rhg1 {[%eval 25,27] [%emt 0:00:31]} Rhg7 {[%eval 72,32] [%emt 0:00:34]} 33. f4 {[%eval 26,29] [%emt 0:00:30]} h4 {[%eval 71,29] [%emt 0:00:38]} 34. a4 {[%eval 20,27] [%emt 0:00:30]} c5 {[%eval 67,30] [%emt 0:00:22]} 35. b3 {[%eval 12,27] [%emt 0:00:29]} Re8 {[%eval 58,30] [%emt 0:00:22]} 36. Rg3 {[%eval 18,28] [%emt 0:00:29]} Kh5 {[%eval 52,31] [%emt 0:00:23]} 37. R3g2 {[%eval 12,29] [%emt 0:00:28]} Kh6 {[%eval 40,33] [%emt 0:00:20]} 38. Rg3 {[%eval 0,55] [%emt 0:00:28]} Kh5 {[%eval 43,34] [%emt 0:00:24]} 39. R3g2 {[%eval 0,49] [%emt 0:00:27]} Ree7 {[%eval 47,35] [%emt 0:00:32]} 40. a5 {[%eval 14,29] [%emt 0:00:27]} Rd7 {[%eval 41,35] [%emt 0:00:30]} 41. a6 {[%eval 0,35] [%emt 0:00:27]} Kh6 {[%eval 34,32] [%emt 0:00:31]} 42. Rg3 {[%eval 0,36] [%emt 0:00:26]} Rd8 {[%eval 33,30] [%emt 0:00:30]} 43. R3g2 {[%eval 0,32] [%emt 0:00:26]} Rd6 {[%eval 37,32] [%emt 0:00:20]} 44. Bb5 {[%eval 0,38] [%emt 0:00:25]} Rb6 {[%eval 34,33] [%emt 0:00:26]} 45. Bd3 {[%eval 0,39] [%emt 0:00:25]} Re6 {[%eval 35,31] [%emt 0:00:23]} 46. Rd1 {[%eval 0,33] [%emt 0:00:25]} Rc7 {[%eval 37,33] [%emt 0:00:26]} 47. Rdg1 {[%eval 0,37] [%emt 0:00:24]} Bd8 {[%eval 35,35] [%emt 0:00:25]} 48. Rd1 {[%eval 0,36] [%emt 0:00:24]} Be7 {[%eval 36,32] [%emt 0:00:23]} 49. Bb5 {[%eval 0,33] [%emt 0:00:23]} Kh5 {[%eval 33,34] [%emt 0:00:27]} 50. Rdg1 {[%eval 0,31] [%emt 0:00:23]} Bf8 {[%eval 30,33] [%emt 0:00:19]} 51. Bc4 {[%eval 0,33] [%emt 0:00:23]} Rd6 {[%eval 27,31] [%emt 0:00:18]} 52. Re1 {[%eval 0,32] [%emt 0:00:22]} Be7 {[%eval 27,32] [%emt 0:00:24]} 53. Bb5 {[%eval 0,34] [%emt 0:00:22]} Rb6 {[%eval 26,34] [%emt 0:00:23]} 54. Bc4 {[%eval 0,37] [%emt 0:00:22]} Rbc6 {[%eval 25,31] [%emt 0:00:20]} 55. Re3 {[%eval 0,34] [%emt 0:00:21]} Rd6 {[%eval 21,34] [%emt 0:00:21]} 56. Bb5 {[%eval 0,32] [%emt 0:00:21]} Rb6 {[%eval 29,32] [%emt 0:00:14]} 57. Bc4 {[%eval 0,36] [%emt 0:00:21]} Kh6 {[%eval 20,36] [%emt 0:00:21]} 58. Rg1 {[%eval 0,36] [%emt 0:00:21]} Rd6 {[%eval 18,35] [%emt 0:00:20]} 59. Bb5 {[%eval 0,36] [%emt 0:00:20]} Rb6 {[%eval 16,34] [%emt 0:00:12]} 60. Bc4 {[%eval 0,43] [%emt 0:00:20]} Bf6 {[%eval 18,33] [%emt 0:00:12]} 61. Rd1 {[%eval 22,30] [%emt 0:00:20]} Rb8 {[%eval 12,34] [%emt 0:00:19]} 62. Rd6 {[%eval 16,31] [%emt 0:00:20]} Kg7 {[%eval 12,36] [%emt 0:00:12]} 63. Ree6 {[%eval 17,30] [%emt 0:00:19]} Rf8 {[%eval 5,32] [%emt 0:00:15]} 64. Bf1 {[%eval 22,30] [%emt 0:00:19]} Rff7 {[%eval 11,37] [%emt 0:00:17]} 65. Re8 {[%eval 0,31] [%emt 0:00:19]} Be7 {[%eval 9,34] [%emt 0:00:19]} 66. Re6 {[%eval 0,32] [%emt 0:00:19]} Bf8 {[%eval 8,34] [%emt 0:00:17]} 67. Re3 {[%eval 0,31] [%emt 0:00:18]} Rce7 {[%eval 8,33] [%emt 0:00:19]} 68. Rb8 {[%eval 13,29] [%emt 0:00:18]} Rd7 {[%eval 17,34] [%emt 0:00:13]} 69. Bb5 {[%eval 0,35] [%emt 0:00:18]} Bd6 {[%eval 13,35] [%emt 0:00:16]} 70. Ra8 {[%eval 0,34] [%emt 0:00:18]} Rc7 {[%eval 10,35] [%emt 0:00:17]} 71. Rh3 {[%eval 0,35] [%emt 0:00:17]} Be7 {[%eval 9,36] [%emt 0:00:16]} 72. Rb8 {[%eval 8,32] [%emt 0:00:17]} Bf6 {[%eval 15,34] [%emt 0:00:15]} 73. Rd3 {[%eval 0,31] [%emt 0:00:17]} Rfe7 {[%eval 14,34] [%emt 0:00:10]} 74. Rd6 {[%eval 8,28] [%emt 0:00:17]} h3 {[%eval 15,31] [%emt 0:00:13]} 75. Rdd8 {[%eval 0,30] [%emt 0:00:17]} Re4 {[%eval 4,27] [%emt 0:00:16]} 76. Rh8 {[%eval 0,29] [%emt 0:00:17]} Rxf4 {[%eval 4,27] [%emt 0:00:11]} 77. Rbg8+ {[%eval 0,28] [%emt 0:00:16]} Kf7 {[%eval 0,27] [%emt 0:00:15]} 78. Be8+ {[%eval 0,28] [%emt 0:00:16]} Ke6 {[%eval 0,28] [%emt 0:00:15]} 79. Rxh3 {[%eval 0,28] [%emt 0:00:16]} Rxf2+ {[%eval 0,27] [%emt 0:00:14]} 80. Kd3 {[%eval 0,28] [%emt 0:00:16]} c4+ {[%eval 0,29] [%emt 0:00:13]} 81. bxc4 {[%eval 0,30] [%emt 0:00:16]} Rf4 {[%eval 0,29] [%emt 0:00:18]} 82. Bb5 {[%eval 8,27] [%emt 0:00:16]} Rg4 {[%eval 0,27] [%emt 0:00:17]} 83. Re3+ {[%eval 45,23] [%emt 0:00:15]} Kd6 {[%eval 0,27] [%emt 0:00:10]} 84. Kc2 {[%eval 55,26] [%emt 0:00:15]} Rg5 {[%eval 0,30] [%emt 0:00:14]} 85. Rf8 {[%eval 83,27] [%emt 0:00:15]} Be7 {[%eval 10,27] [%emt 0:00:14]} 86. Rf7 {[%eval 81,26] [%emt 0:00:15]} Rg4 {[%eval 59,27] [%emt 0:00:13]} 87. Rg7 {[%eval 87,29] [%emt 0:00:15]} Rg2+ {[%eval 56,29] [%emt 0:00:13]} 88. Kb3 {[%eval 92,30] [%emt 0:00:15]} Rg4 {[%eval 61,30] [%emt 0:00:12]} 89. Be8 {[%eval 93,29] [%emt 0:00:15]} Re4 {[%eval 65,32] [%emt 0:00:15]} 90. Rd3+ {[%eval 86,30] [%emt 0:00:14]} Ke6 {[%eval 67,31] [%emt 0:00:14]} 91. Rd7 {[%eval 99,29] [%emt 0:00:14]} Rxd7 {[%eval 69,31] [%emt 0:00:09]} 92. Rxg6+ {[%eval 85,31] [%emt 0:00:14]} Ke5 {[%eval 69,33] [%emt 0:00:13]} 93. Bxd7 {[%eval 78,30] [%emt 0:00:14]} Kf4 {[%eval 69,32] [%emt 0:00:10]} 94. Bc6 {[%eval 78,29] [%emt 0:00:14]} Re3 {[%eval 69,31] [%emt 0:00:12]} 95. Bd5 {[%eval 78,28] [%emt 0:00:14]} Bc5 {[%eval 71,32] [%emt 0:00:11]} 96. Kc2 {[%eval 77,29] [%emt 0:00:14]} Re2+ {[%eval 71,31] [%emt 0:00:11]} 97. Kd3 {[%eval 70,31] [%emt 0:00:14]} Re3+ {[%eval 71,31] [%emt 0:00:14]} 98. Kd2 {[%eval 77,28] [%emt 0:00:14]} Rg3 {[%eval 70,28] [%emt 0:00:13]} 99. Rc6 {[%eval 90,29] [%emt 0:00:13]} Be3+ {[%eval 80,29] [%emt 0:00:10]} 100. Kc2 {[%eval 88,29] [%emt 0:00:13]} Ke5 {[%eval 79,29] [%emt 0:00:07]} 101. Re6+ {[%eval 84,27] [%emt 0:00:13]} Kf4 {[%eval 80,29] [%emt 0:00:07]} 102. Re8 {[%eval 100,28] [%emt 0:00:13]} Rg1 {[%eval 80,25] [%emt 0:00:13]} 103. Rc8 {[%eval 95,26] [%emt 0:00:13]} Ra1 {[%eval 79,29] [%emt 0:00:09]} 104. Kb3 {[%eval 107,28] [%emt 0:00:13]} Rxa6 {[%eval 47,28] [%emt 0:00:08]} 105. c5 {[%eval 101,27] [%emt 0:00:13]} Rh6 {[%eval 47,31] [%emt 0:00:11]} 106. Rc7 {[%eval 115,26] [%emt 0:00:13]} Rh3 {[%eval 83,28] [%emt 0:00:10]} 107. Ka4 {[%eval 134,27] [%emt 0:00:13]} a6 {[%eval 86,28] [%emt 0:00:07]} 108. Bb7 {[%eval 192,24] [%emt 0:00:13]} Kg5 {[%eval 101,28] [%emt 0:00:19]} 109. c4 {[%eval 252,26] [%emt 0:00:13]} Bf4 {[%eval 116,28] [%emt 0:00:09]} 110. Rd7 {[%eval 280,26] [%emt 0:00:12]} Kf6 {[%eval 432,25] [%emt 0:00:21]} 111. c6 {[%eval 420,25] [%emt 0:00:12]} Ke6 {[%eval 443,24] [%emt 0:00:04]} 112. c7 {[%eval 455,24] [%emt 0:00:12]} Bxc7 {[%eval 478,27] [%emt 0:00:09]} 113. Rxc7 {[%eval 477,26] [%emt 0:00:12]} Rh4 {[%eval 515,24] [%emt 0:00:23]} 114. Ka5 {[%eval 630,26] [%emt 0:00:12]} f4 {[%eval 525,26] [%emt 0:00:03]} 115. c5 {[%eval 720,26] [%emt 0:00:12]} Rh2 {[%eval 524,25] [%emt 0:00:04]} 116. c6 {[%eval 843,28] [%emt 0:00:12]} f3 {[%eval 695,22] [%emt 0:00:22]} 117. Rg7 {[%eval 879,29] [%emt 0:00:12]} Ra2+ {[%eval 699,19] [%emt 0:00:07]} 118. Kb6 {[%eval 952,28] [%emt 0:00:12]} Rb2+ {[%eval 708,20] [%emt 0:00:04]} 119. Ka7 {[%eval 999,32] [%emt 0:00:12]} Rc2 {[%eval 1093,23] [%emt 0:00:06] termination reason: TCEC win rule} 1-0

[Event "TCEC Season 13 - Division 4"]
[Site "http://tcec.chessdom.com"]
[Date "2018.08.09"]
[Round "26.2"]
[White "DeusX 1.0"]
[Black "LCZero 16.10161"]
[Result "1/2-1/2"]
[ECO "B67"]
[WhiteElo "3200"]
[BlackElo "3219"]
[PlyCount "157"]
[EventDate "2018.??.??"]
[TimeControl "1800+10"]

{WhiteEngineOptions: Protocol=uci;, BlackEngineOptions: Protocol=uci; Move time overhead in milliseconds=2000;} 1. e4 {book} c5 {book} 2. Nf3 {book} Nc6 {book} 3. d4 {[%eval 59,5] [%emt 0:00:49]} cxd4 {[%eval 21,6] [%emt 0:00:51]} 4. Nxd4 {[%eval 60,6] [%emt 0:00:21]} Nf6 {[%eval 17,5] [%emt 0:00:55]} 5. Nc3 {[%eval 54,5] [%emt 0:00:37]} d6 {[%eval 17,5] [%emt 0:00:13]} 6. Bg5 {[%eval 69,4] [%emt 0:00:45]} e6 {[%eval 16,5] [%emt 0:00:49]} 7. Qd2 {[%eval 70,6] [%emt 0:00:25]} a6 {[%eval 12,5] [%emt 0:00:50]} 8. O-O-O {[%eval 76,5] [%emt 0:00:39]} Bd7 {[%eval 13,4] [%emt 0:00:28]} 9. f4 {[%eval 85,4] [%emt 0:00:45]} b5 {[%eval 11,4] [%emt 0:00:39]} 10. Bxf6 {[%eval 88,5] [%emt 0:00:36]} gxf6 {[%eval 11,4] [%emt 0:00:29]} 11. Nxc6 {[%eval 92,5] [%emt 0:00:29]} Bxc6 {[%eval 17,5] [%emt 0:00:49]} 12. Qe1 {[%eval 92,4] [%emt 0:00:21]} Be7 {[%eval 2,4] [%emt 0:00:57]} 13. Bd3 {[%eval 94,4] [%emt 0:00:25]} b4 {[%eval 31,4] [%emt 0:00:50]} 14. Ne2 {[%eval 94,5] [%emt 0:00:46]} Qb6 {[%eval 33,4] [%emt 0:00:43]} 15. f5 {[%eval 98,4] [%emt 0:00:29]} e5 {[%eval 29,4] [%emt 0:00:14]} 16. Ng3 {[%eval 99,4] [%emt 0:00:04]} h5 {[%eval 24,4] [%emt 0:00:19]} 17. h4 {[%eval 89,3] [%emt 0:00:49]} a5 {[%eval 27,4] [%emt 0:00:45]} 18. Qe2 {[%eval 148,4] [%emt 0:00:49]} a4 {[%eval 29,4] [%emt 0:00:17]} 19. Kb1 {[%eval 112,4] [%emt 0:00:56]} Qc5 {[%eval 20,4] [%emt 0:01:16]} 20. Bc4 {[%eval 77,4] [%emt 0:00:54]} a3 {[%eval 15,4] [%emt 0:00:38]} 21. b3 {[%eval 131,4] [%emt 0:00:47]} O-O-O {[%eval 9,4] [%emt 0:00:19]} 22. c3 {[%eval 146,4] [%emt 0:01:06]} bxc3 {[%eval 4,4] [%emt 0:00:28]} 23. Rd3 {[%eval 148,3] [%emt 0:00:14]} d5 {[%eval 2,3] [%emt 0:01:04]} 24. exd5 {[%eval 147,5] [%emt 0:00:03]} Bb7 {[%eval 2,5] [%emt 0:00:00]} 25. Rxc3 {[%eval 178,4] [%emt 0:01:07]} Kb8 {[%eval 34,4] [%emt 0:01:01]} 26. Rc2 {[%eval 155,3] [%emt 0:00:32]} Bxd5 {[%eval 15,4] [%emt 0:01:08]} 27. Rhc1 {[%eval 137,4] [%emt 0:00:23]} Bxc4 {[%eval 18,4] [%emt 0:00:51]} 28. Rxc4 {[%eval 165,4] [%emt 0:00:45]} Qd6 {[%eval 24,4] [%emt 0:00:32]} 29. R4c3 {[%eval 175,3] [%emt 0:01:19]} Rd7 {[%eval 11,4] [%emt 0:00:40]} 30. Qb5+ {[%eval 172,3] [%emt 0:00:19]} Rb7 {[%eval 0,5] [%emt 0:00:43]} 31. Qe2 {[%eval 170,3] [%emt 0:00:09]} Rg8 {[%eval 2,5] [%emt 0:00:55]} 32. Nxh5 {[%eval 182,4] [%emt 0:00:46]} Rd7 {[%eval 1,4] [%emt 0:00:18]} 33. Qb5+ {[%eval 163,4] [%emt 0:00:52]} Rb7 {[%eval 2,4] [%emt 0:00:42]} 34. Qe2 {[%eval 158,3] [%emt 0:00:09]} Rd7 {[%eval 1,4] [%emt 0:00:20]} 35. Qc4 {[%eval 151,235] [%emt 0:00:38]} Qd4 {[%eval 3,4] [%emt 0:00:56]} 36. Qc6 {[%eval 148,3] [%emt 0:00:11]} Qd6 {[%eval 1,4] [%emt 0:00:42]} 37. Qa4 {[%eval 147,5] [%emt 0:01:08]} Qd4 {[%eval 18,4] [%emt 0:00:43]} 38. Qb5+ {[%eval 150,4] [%emt 0:01:09]} Rb7 {[%eval 10,5] [%emt 0:00:38]} 39. Qe2 {[%eval 149,3] [%emt 0:00:11]} Qxh4 {[%eval 6,4] [%emt 0:00:20]} 40. g4 {[%eval 149,3] [%emt 0:00:23]} Rd8 {[%eval 0,6] [%emt 0:00:20]} 41. R3c2 {[%eval 144,3] [%emt 0:00:57]} Rg8 {[%eval 2,4] [%emt 0:00:39]} 42. Qa6 {[%eval 153,3] [%emt 0:00:51]} Rd8 {[%eval 0,4] [%emt 0:00:34]} 43. Qe2 {[%eval 141,3] [%emt 0:00:18]} Rg8 {[%eval 0,4] [%emt 0:00:16]} 44. Qf3 {[%eval 150,3] [%emt 0:00:48]} Qg5 {[%eval 2,6] [%emt 0:00:36]} 45. Qe4 {[%eval 147,4] [%emt 0:00:59]} Rd8 {[%eval 1,4] [%emt 0:00:15]} 46. Qe2 {[%eval 149,3] [%emt 0:00:17]} Rg8 {[%eval 1,4] [%emt 0:00:19]} 47. Rc6 {[%eval 134,4] [%emt 0:01:04]} Qh4 {[%eval 0,5] [%emt 0:00:24]} 48. R6c4 {[%eval 126,3] [%emt 0:00:39]} Qh3 {[%eval 5,4] [%emt 0:00:35]} 49. Rc6 {[%eval 125,3] [%emt 0:00:49]} Qh4 {[%eval 1,4] [%emt 0:00:34]} 50. R6c4 {[%eval 126,3] [%emt 0:00:18]} Qh3 {[%eval 5,5] [%emt 0:00:33]} 51. R4c3 {[%eval 128,4] [%emt 0:00:30]} Qh4 {[%eval 35,5] [%emt 0:00:28]} 52. Qc2 {[%eval 128,233] [%emt 0:00:21]} Rd8 {[%eval 34,4] [%emt 0:00:11]} 53. Qe2 {[%eval 123,3] [%emt 0:00:11]} Qg5 {[%eval 2,4] [%emt 0:00:34]} 54. R3c2 {[%eval 115,4] [%emt 0:00:09]} Qh4 {[%eval 0,4] [%emt 0:00:36]} 55. Qf3 {[%eval 105,3] [%emt 0:00:18]} Qg5 {[%eval 1,4] [%emt 0:00:00]} 56. Qe4 {[%eval 103,4] [%emt 0:00:02]} Rd4 {[%eval 15,4] [%emt 0:00:48]} 57. Qc6 {[%eval 112,4] [%emt 0:00:28]} Ka7 {[%eval 9,4] [%emt 0:00:28]} 58. Ka1 {[%eval 103,3] [%emt 0:00:20]} Qh6 {[%eval 7,5] [%emt 0:00:44]} 59. Ng3 {[%eval 75,3] [%emt 0:00:35]} Qe3 {[%eval 20,3] [%emt 0:00:28]} 60. Ne2 {[%eval 72,3] [%emt 0:00:15]} Rd8 {[%eval 21,3] [%emt 0:00:12]} 61. Kb1 {[%eval 84,3] [%emt 0:00:20]} Qd3 {[%eval 17,3] [%emt 0:00:30]} 62. Nc3 {[%eval 82,3] [%emt 0:00:29]} Qa6 {[%eval 9,3] [%emt 0:00:29]} 63. Ne4 {[%eval 106,3] [%emt 0:00:31]} Rb4 {[%eval 10,3] [%emt 0:01:01]} 64. Qc7+ {[%eval 114,4] [%emt 0:00:28]} Rb7 {[%eval 30,4] [%emt 0:00:15]} 65. Qc6 {[%eval 101,3] [%emt 0:00:45]} Qxc6 {[%eval 6,3] [%emt 0:00:39]} 66. Rxc6 {[%eval 79,4] [%emt 0:00:26]} Rg8 {[%eval 10,5] [%emt 0:00:09]} 67. Rg1 {[%eval 69,4] [%emt 0:00:34]} Rh8 {[%eval 14,5] [%emt 0:00:16]} 68. Rd1 {[%eval 95,3] [%emt 0:00:28]} Rh2 {[%eval 17,5] [%emt 0:00:10]} 69. Rd2 {[%eval 85,3] [%emt 0:00:17]} Rh4 {[%eval 16,4] [%emt 0:00:09]} 70. Nd6 {[%eval 119,4] [%emt 0:00:25]} Bxd6 {[%eval 45,4] [%emt 0:00:23]} 71. Rdxd6 {[%eval 121,5] [%emt 0:00:10]} Kb8 {[%eval 41,4] [%emt 0:00:13]} 72. Rd8+ {[%eval 122,4] [%emt 0:00:24]} Ka7 {[%eval 22,5] [%emt 0:00:00]} 73. Rc4 {[%eval 128,4] [%emt 0:00:09]} Re7 {[%eval 8,5] [%emt 0:00:23]} 74. Rd5 {[%eval 100,3] [%emt 0:00:45]} e4 {[%eval 2,4] [%emt 0:00:23]} 75. Rb4 {[%eval 0,4] [%emt 0:00:21]} Ka6 {[%eval 1,3] [%emt 0:00:22]} 76. Rd6+ {[%eval 0,4] [%emt 0:00:13]} Ka7 {[%eval 1,4] [%emt 0:00:21]} 77. Rd5 {[%eval 0,3] [%emt 0:00:09]} Ka6 {[%eval 0,3] [%emt 0:00:10]} 78. Rd6+ {[%eval 0,4] [%emt 0:00:09]} Ka7 {[%eval 0,4] [%emt 0:00:16]} 79. Rd5 {[%eval 0,3] [%emt 0:00:08] termination reason: 3-Fold repetition} 1/2-1/2